bitfinex-derivatives/quotes_SOLF0:USTF0_20241027
["timestamp","ask_amount","ask_price","bid_price","bid_amount"]
[1730041026314,2.8362,176.48,176.43,2.8368]
[1730041026512,2.8362,176.48,176.4,4.2]
[1730041027313,2.8362,176.48,176.44,2.8367]
[1730041028021,2.8356,176.51,176.43,2.8368]
[1730041028215,2.8356,176.51,176.44,4.2]
[1730041028416,2.8356,176.51,176.45,2.4342]
[1730041028919,4.2,176.52,176.45,2.4342]
[1730041029108,2.8358,176.5,176.46,2.8363]
[1730041030019,2.8357,176.51,176.47,2.8361]
[1730041030217,4.2,176.54,176.45,2.4342]
[1730041031122,2.836,176.49,176.45,2.4342]
[1730041032219,2.836,176.49,176.46,2.8364]
[1730041036625,4.2,176.54,176.45,2.4342]
[1730041036817,2.8364,176.47,176.45,2.4342]
[1730041037224,4.2,176.54,176.45,2.4342]
[1730041037930,2.836,176.49,176.45,5.2707]
[1730041040642,4.2,176.54,176.45,2.4342]
[1730041041340,2.8362,176.48,176.45,5.2708]
[1730041049238,4.2,176.54,176.45,2.4342]
[1730041049442,4.2,176.54,176.44,2.8367]
[1730041050335,4.2,176.54,176.43,4.2]
[1730041050537,2.8362,176.48,176.45,2.8365]
[1730041069651,4.2,176.53,176.43,4.2]
[1730041070455,2.8364,176.47,176.43,4.2]
[1730041070649,2.8364,176.47,176.42,2.837]
[1730041070958,2.8364,176.47,176.42,7.037]
[1730041072860,4.2,176.53,176.42,7.037]
[1730041073149,2.8365,176.46,176.42,7.037]
[1730041073555,4.2,176.53,176.4,2.4755]
[1730041073758,2.8366,176.45,176.41,7.0372]
[1730041075156,2.8366,176.45,176.41,2.8372]
[1730041077057,2.8366,176.45,176.41,7.0372]
[1730041080658,4.2,176.53,176.41,4.2]
[1730041081165,2.8369,176.44,176.41,4.2]
[1730041082351,2.8369,176.43,176.41,4.2]
[1730041082767,5.6712,176.52,176.41,4.2]
[1730041083257,2.8368,176.44,176.41,7.0372]
[1730041088964,4.2,176.49,176.4,2.4755]
[1730041090155,2.8372,176.42,176.4,2.4755]
[1730041091166,4.2,176.49,176.4,2.4755]
[1730041091356,9.8722,176.49,176.38,2.8376]
[1730041091558,9.8722,176.49,176.34,2.5139]
[1730041091857,2.8372,176.42,176.39,2.8375]
[1730041092169,9.8722,176.49,176.39,4.2]
[1730041092170,4.2,176.48,176.39,4.2]
[1730041092370,2.8369,176.44,176.4,2.8373]
[1730041092557,4.2,176.48,176.4,2.8373]
[1730041092859,2.8369,176.43,176.4,2.8373]
[1730041101168,2.8366,176.45,176.39,2.8374]
[1730041101370,4.2,176.48,176.38,4.2]
[1730041101862,2.8371,176.43,176.4,2.8374]
[1730041102065,4.2,176.48,176.38,4.2]
[1730041102365,2.8371,176.42,176.39,2.8374]
[1730041103062,4.2,176.48,176.38,4.2]
[1730041104258,2.8371,176.42,176.4,2.8373]
[1730041106459,4.2,176.48,176.34,2.5139]
[1730041106666,4.2,176.48,176.35,4.2]
[1730041107262,2.8372,176.42,176.39,2.8375]
[1730041107462,2.8372,176.42,176.35,4.2]
[1730041108375,2.8372,176.42,176.39,2.8375]
[1730041110672,2.8372,176.42,176.4,2.8374]
[1730041110868,2.8372,176.42,176.35,4.2]
[1730041112372,2.8372,176.42,176.39,2.8375]
[1730041112869,2.8372,176.42,176.35,4.2]
[1730041113570,4.2,176.48,176.35,4.2]
[1730041113767,4.2,176.48,176.34,2.5139]
[1730041113970,5.6731,176.46,176.35,4.2]
[1730041114172,5.6731,176.46,176.34,2.5139]
[1730041114173,2.8379,176.37,176.34,2.8382]
[1730041115884,2.8377,176.39,176.35,2.8382]
[1730041118281,4.2,176.41,176.34,2.8383]
[1730041118476,4.2,176.41,176.32,1.2524]
[1730041118784,2.8378,176.38,176.34,2.8383]
[1730041121082,2.8374,176.41,176.32,1.2524]
[1730041121579,2.8374,176.41,176.37,2.8378]
[1730041121974,2.8374,176.41,176.32,1.2524]
[1730041122183,2.8374,176.41,176.37,2.8378]
[1730041124081,2.8371,176.42,176.39,2.8375]
[1730041129990,2.8371,176.42,176.35,4.2]
[1730041131086,2.837,176.43,176.35,4.2]
[1730041131391,2.837,176.43,176.36,1.2164]
[1730041131591,4.18,176.46,176.36,1.2164]
[1730041131792,2.8368,176.44,176.37,1.1832]
[1730041132089,2.8368,176.44,176.4,2.8373]
[1730041135490,2.8368,176.44,176.41,2.8372]
[1730041138996,4.18,176.46,176.41,2.8372]
[1730041139695,2.8369,176.44,176.41,2.8372]
[1730041139891,4.18,176.46,176.41,2.8372]
[1730041141998,5.6716,176.51,176.41,2.8372]
[1730041142297,2.8369,176.44,176.41,2.8372]
[1730041143407,4.18,176.46,176.41,2.8372]
[1730041143605,2.837,176.43,176.41,2.8372]
[1730041144000,2.837,176.43,176.4,2.8373]
[1730041148304,4.18,176.46,176.35,4.2]
[1730041148511,2.8373,176.41,176.38,2.8376]
[1730041154607,4.18,176.46,176.34,6.7083]
[1730041154811,2.8371,176.43,176.4,2.8373]
[1730041157003,2.8368,176.44,176.34,6.7083]
[1730041157204,4.18,176.46,176.34,6.7083]
[1730041157512,4.18,176.46,176.35,5.6762]
[1730041158013,4.18,176.46,176.41,2.8371]
[1730041158604,2.8368,176.44,176.41,2.8371]
[1730041160404,2.8368,176.44,176.42,2.837]
[1730041161214,2.8367,176.45,176.42,2.837]
[1730041162216,4.18,176.47,176.44,2.8368]
[1730041162709,2.8366,176.46,176.44,2.8368]
[1730041163214,2.8366,176.46,176.43,2.8368]
[1730041164810,2.8367,176.45,176.43,2.8368]
[1730041165510,4.18,176.48,176.4,2.3787]
[1730041165716,4.18,176.48,176.36,4.18]
[1730041166415,2.8369,176.44,176.41,2.8372]
[1730041166605,4.18,176.48,176.41,2.8372]
[1730041167707,2.8369,176.43,176.41,2.8372]
[1730041178721,4.18,176.45,176.41,2.8372]
[1730041178927,2.8369,176.43,176.41,2.8372]
[1730041181423,4.18,176.45,176.36,4.18]
[1730041181726,2.8365,176.46,176.43,2.8368]
[1730041182125,2.8365,176.46,176.44,2.8367]
[1730041184528,4.18,176.49,176.4,4.18]
[1730041184725,4.18,176.49,176.41,3.7059]
[1730041185825,2.8363,176.47,176.45,2.8365]
[1730041186026,4.18,176.49,176.45,2.8365]
[1730041186626,119.56925219,176.53,176.45,2.8365]
[1730041186826,4.18,176.5,176.45,2.8365]
[1730041187324,2.8363,176.47,176.45,2.8365]
[1730041187936,4.18,176.5,176.41,3.7059]
[1730041188230,2.8368,176.44,176.41,3.7059]
[1730041188428,4.18,176.5,176.41,3.7059]
[1730041189231,2.8362,176.48,176.43,2.8368]
[1730041189429,4.18,176.5,176.43,2.8368]
[1730041189927,2.8366,176.46,176.44,2.8367]
[1730041195129,2.8366,176.46,176.41,3.7059]
[1730041195330,2.8366,176.46,176.43,2.8368]
[1730041197639,4.18,176.5,176.43,2.8368]
[1730041197640,2.8366,176.45,176.43,2.8368]
[1730041198447,4.18,176.5,176.41,3.7059]
[1730041198644,2.8365,176.46,176.44,2.8366]
[1730041200542,2.8365,176.46,176.43,2.8368]
[1730041201142,2.8362,176.48,176.45,2.8364]
[1730041201341,5.6695,176.57,176.41,3.7059]
[1730041201541,2.8362,176.48,176.41,3.7059]
[1730041201841,2.8362,176.48,176.46,2.8364]
[1730041202039,4.18,176.54,176.41,3.7059]
[1730041202437,4.18,176.53,176.41,3.7059]
[1730041202636,2.8357,176.51,176.48,2.836]
[1730041202941,5.6695,176.57,176.49,1.41836277]
[1730041202942,4.18,176.54,176.49,1.41836277]
[1730041203138,4.18,176.54,176.44,4.18]
[1730041203341,2.8356,176.51,176.45,1.4183317]
[1730041203549,4.18,176.55,176.46,1.4183317]
[1730041203750,4.18,176.55,176.47,3.7935317]
[1730041204043,4.18,176.56,176.48,1.4183317]
[1730041204244,4.18,176.57,176.49,1.4183317]
[1730041204450,2.8353,176.54,176.51,2.8356]
[1730041204647,2.8353,176.54,176.52,1.4183317]
[1730041204847,2.8353,176.53,176.51,2.8356]
[1730041205642,2.8352,176.54,176.52,1.418104]
[1730041205844,4.18,176.58,176.48,5.351]
[1730041206050,4.18,176.58,176.49,6.28728469]
[1730041206242,2.835,176.56,176.52,2.8353]
[1730041207645,2.835,176.56,176.48,5.351]
[1730041207845,2.835,176.56,176.49,6.2845608]
[1730041208049,2.835,176.56,176.5,6.2845608]
[1730041208250,2.835,176.56,176.51,6.2845608]
[1730041208452,2.835,176.56,176.52,1.41806967]
[1730041208641,2.835,176.56,176.48,5.351]
[1730041208845,2.835,176.56,176.53,2.8353]
[1730041209562,2.835,176.56,176.49,4.86300868]
[1730041209747,2.835,176.56,176.5,6.28105409]
[1730041209943,2.835,176.56,176.51,6.28105409]
[1730041210147,2.835,176.56,176.54,2.8351]
[1730041210354,8.4996,176.67,176.48,5.351]
[1730041210552,2.8346,176.58,176.53,1.2239]
[1730041210976,2.8344,176.59,176.56,2.8348]
[1730041211173,4.18,176.62,176.53,2.434]
[1730041211373,4.18,176.62,176.56,2.8347]
[1730041211873,4.18,176.62,176.58,2.8344]
[1730041212071,4.18,176.62,176.55,1.41773055]
[1730041212277,4.18,176.62,176.54,1.2187]
[1730041212481,2.834,176.62,176.59,2.8343]
[1730041213294,2.8337,176.63,176.6,2.8341]
[1730041214080,55.08,176.76,176.56,4.18]
[1730041214384,14.06486135,176.75,176.57,1.41754013]
[1730041214597,4.18,176.75,176.56,4.18]
[1730041214795,7.03352171,176.75,176.56,4.18]
[1730041215190,2.8332,176.66,176.63,2.8336]
[1730041216783,2.8331,176.67,176.63,2.8336]
[1730041217591,2.8329,176.68,176.62,3.6076]
[1730041218092,2.8329,176.68,176.64,2.8334]
[1730041218695,2.8329,176.68,176.62,3.6076]
[1730041219518,2.8329,176.68,176.64,2.8334]
[1730041220798,2.8329,176.68,176.65,2.8334]
[1730041221196,4.18,176.71,176.62,3.6076]
[1730041221397,2.8332,176.67,176.63,2.8336]
[1730041222791,4.18,176.71,176.62,7.7876]
[1730041223007,2.8329,176.68,176.62,7.7876]
[1730041223188,4.18,176.71,176.62,7.7876]
[1730041223402,4.18,176.73,176.62,7.7876]
[1730041223595,2.8327,176.7,176.67,2.833]
[1730041224931,2.8327,176.7,176.68,2.8329]
[1730041226311,2.8327,176.7,176.67,2.833]
[1730041228202,4.18,176.73,176.67,2.833]
[1730041229108,2.8327,176.7,176.67,2.833]
[1730041230204,2.8328,176.69,176.66,2.8332]
[1730041230723,2.833,176.68,176.65,2.8334]
[1730041235296,4.18,176.73,176.64,4.18]
[1730041235504,2.8329,176.69,176.66,2.8331]
[1730041235805,4.18,176.73,176.66,2.8331]
[1730041236208,4.18,176.73,176.64,4.18]
[1730041236407,2.8327,176.69,176.64,4.18]
[1730041236605,4.18,176.73,176.64,4.18]
[1730041238259,4.18,176.73,176.62,3.6076]
[1730041238403,4.18,176.73,176.62,2.3507]
[1730041239007,2.8336,176.64,176.62,5.1845]
[1730041239210,4.18,176.69,176.62,2.3507]
[1730041239510,2.8331,176.67,176.64,2.8335]
[1730041239708,4.18,176.69,176.62,2.3507]
[1730041239898,4.18,176.69,176.62,3.6185]
[1730041240093,2.833,176.68,176.65,2.8332]
[1730041240501,5.661,176.83,176.66,4.18]
[1730041240699,4.18,176.82,176.67,4.18]
[1730041240900,4.18,176.82,176.68,4.18]
[1730041241108,4.18,176.81,176.69,1.228]
[1730041241599,4.18,176.81,176.69,5.408]
[1730041242207,2.8314,176.78,176.71,2.8324]
[1730041242395,4.18,176.81,176.71,2.8324]
[1730041242907,2.8319,176.75,176.71,2.8324]
[1730041244408,4.18,176.81,176.71,2.8324]
[1730041244601,2.8319,176.74,176.71,2.8324]
[1730041244910,4.18,176.81,176.69,1.228]
[1730041245199,2.8323,176.72,176.69,5.408]
[1730041245389,2.8323,176.72,176.69,4.0607]
[1730041245691,4.18,176.77,176.59,5.6687]
[1730041245692,2.8325,176.71,176.6,2.322]
[1730041245896,4.18,176.77,176.61,5.22123377]
[1730041246097,4.18,176.77,176.61,4.18]
[1730041247391,2.8323,176.72,176.61,4.18]
[1730041248097,4.18,176.77,176.61,4.18]
[1730041248493,4.18,176.77,176.67,2.833]
[1730041248695,2.8326,176.7,176.67,2.833]
[1730041249597,2.8326,176.7,176.65,4.16]
[1730041249794,2.8326,176.7,176.68,2.8329]
[1730041251295,4.18,176.77,176.68,2.8329]
[1730041251499,2.8325,176.71,176.68,2.8329]
[1730041257401,2.8325,176.71,176.65,4.16]
[1730041257605,2.8325,176.71,176.68,2.8328]
[1730041261703,2.833,176.68,176.65,2.8333]
[1730041261909,5.6626,176.79,176.62,4.16]
[1730041261910,4.16,176.73,176.62,4.16]
[1730041262212,2.8332,176.67,176.64,2.8335]
[1730041262503,4.16,176.72,176.61,1.1683]
[1730041262705,4.16,176.72,176.61,5.3283]
[1730041262908,2.8334,176.66,176.64,2.8335]
[1730041263306,4.16,176.72,176.63,2.8337]
[1730041263710,4.16,176.72,176.61,5.3283]
[1730041264105,2.8333,176.66,176.64,2.8335]
[1730041264308,4.16,176.72,176.61,5.3283]
[1730041265013,2.8333,176.66,176.63,2.8336]
[1730041266705,4.16,176.72,176.63,2.8336]
[1730041266923,2.8334,176.65,176.63,2.8336]
[1730041271315,4.16,176.72,176.61,1.1683]
[1730041271715,4.16,176.73,176.61,1.1683]
[1730041272216,2.8328,176.69,176.66,2.8331]
[1730041273014,4.16,176.73,176.61,1.1683]
[1730041273322,2.833,176.68,176.65,2.8333]
[1730041273715,2.8331,176.67,176.65,2.8333]
[1730041274827,4.16,176.73,176.65,2.8333]
[1730041275029,2.833,176.68,176.65,2.8333]
[1730041275720,2.8331,176.67,176.65,2.8333]
[1730041279432,4.16,176.73,176.63,1.41694723]
[1730041279622,4.16,176.73,176.63,2.8336]
[1730041280028,4.16,176.73,176.62,4.85121597]
[1730041280235,4.16,176.73,176.63,1.417007]
[1730041280434,4.16,176.73,176.61,5.3283]
[1730041280733,2.8333,176.66,176.62,6.27019254]
[1730041280933,2.8333,176.66,176.63,1.41700635]
[1730041281135,2.8331,176.67,176.63,2.8336]
[1730041281335,4.16,176.69,176.63,2.8336]
[1730041281535,4.16,176.69,176.64,1.41700758]
[1730041281832,2.8333,176.66,176.63,2.8336]
[1730041282036,2.8333,176.66,176.64,1.41700729]
[1730041282349,2.8333,176.66,176.63,2.8336]
[1730041282558,2.8333,176.66,176.64,1.41700729]
[1730041282760,2.8333,176.66,176.63,2.8336]
[1730041283065,2.8333,176.66,176.64,1.41700729]
[1730041283264,2.8333,176.66,176.63,2.8336]
[1730041283461,2.8334,176.65,176.64,1.41700729]
[1730041285561,2.8334,176.65,176.64,6.27585306]
[1730041285774,2.8334,176.65,176.64,1.41699746]
[1730041285972,2.8334,176.65,176.64,6.27582241]
[1730041288262,4.16,176.69,176.64,6.27582241]
[1730041288463,4.16,176.69,176.63,2.8336]
[1730041288464,2.8333,176.66,176.65,1.41699746]
[1730041291377,2.1925,176.74,176.65,6.27909571]
[1730041291583,4.16,176.73,176.66,1.41699746]
[1730041291873,2.8325,176.71,176.69,2.8327]
[1730041292084,4.16,176.76,176.64,4.16]
[1730041292296,4.16,176.76,176.65,6.27669207]
[1730041292467,2.8322,176.73,176.7,2.8325]
[1730041293112,4.16,176.76,176.67,2.4339]
[1730041293276,2.8323,176.72,176.69,2.8327]
[1730041295380,2.8321,176.73,176.7,1.41664998]
[1730041295573,2.8321,176.73,176.67,2.4339]
[1730041295769,2.8323,176.72,176.7,2.8325]
[1730041296081,2.8323,176.72,176.67,2.4339]
[1730041296284,123.78938279,176.79,176.68,6.27383325]
[1730041296482,2.832,176.74,176.68,4.16]
[1730041296694,4.16,176.76,176.69,6.27330133]
[1730041296871,4.16,176.76,176.71,2.8324]
[1730041296872,2.8321,176.74,176.71,2.8324]
[1730041297671,2.8321,176.73,176.71,2.8324]
[1730041297969,4.16,176.76,176.73,2.832]
[1730041298180,2.8317,176.76,176.73,2.832]
[1730041298367,4.16,176.8,176.69,4.85407282]
[1730041298671,4.16,176.81,176.73,2.832]
[1730041299071,4.16,176.81,176.74,2.8319]
[1730041300077,2.8316,176.76,176.72,4.16]
[1730041300277,2.8316,176.76,176.73,2.832]
[1730041301086,2.8314,176.78,176.75,2.8318]
[1730041301385,4.16,176.81,176.72,4.16]
[1730041301695,4.16,176.83,176.74,2.8319]
[1730041302380,4.16,176.83,176.73,1.2624]
[1730041302891,2.8319,176.75,176.73,1.2624]
[1730041303676,2.8319,176.75,176.73,4.0945]
[1730041307676,2.8316,176.76,176.73,4.0945]
[1730041307874,4.16,176.79,176.73,4.0945]
[1730041308674,2.8318,176.76,176.73,4.0945]
[1730041309070,2.8318,176.75,176.73,4.0945]
[1730041309574,2.8318,176.75,176.73,1.2624]
[1730041309975,4.16,176.79,176.68,1.2119]
[1730041310188,4.16,176.79,176.71,2.8324]
[1730041310475,4.16,176.79,176.69,4.16]
[1730041310670,2.8319,176.75,176.72,2.8323]
[1730041310972,4.16,176.79,176.69,4.16]
[1730041311176,2.832,176.74,176.71,2.8324]
[1730041311366,4.16,176.79,176.69,4.16]
[1730041311570,4.16,176.79,176.68,2.3855]
[1730041311767,4.16,176.79,176.69,1.41655031]
[1730041311993,1.2182,176.78,176.68,1.1736]
[1730041312282,1.2182,176.78,176.69,2.8327]
[1730041312870,2.8324,176.72,176.69,2.8327]
[1730041313849,2.8327,176.69,176.68,1.1736]
[1730041314049,5.6632,176.77,176.68,1.1736]
[1730041314258,4.16,176.76,176.68,1.1736]
[1730041314661,2.8325,176.71,176.68,4.0065]
[1730041315746,2.8325,176.71,176.69,2.8327]
[1730041316149,2.832,176.74,176.68,1.1736]
[1730041316357,4.16,176.76,176.7,2.8325]
[1730041316656,2.8322,176.73,176.7,2.8325]
[1730041316954,4.16,176.79,176.73,2.832]
[1730041317353,2.8317,176.76,176.73,2.832]
[1730041318550,4.16,176.79,176.73,2.832]
[1730041318755,4.16,176.79,176.71,2.8323]
[1730041319561,2.832,176.74,176.71,2.8323]
[1730041320951,2.8324,176.72,176.69,2.8326]
[1730041321355,2.8324,176.72,176.68,1.1736]
[1730041322355,2.8324,176.72,176.7,2.8326]
[1730041325452,2.8322,176.73,176.7,2.8324]
[1730041325664,2.8322,176.73,176.68,1.1736]
[1730041326159,4.16,176.75,176.68,1.1736]
[1730041326355,2.832,176.74,176.71,2.8323]
[1730041326753,4.16,176.77,176.71,2.8323]
[1730041326754,2.8317,176.76,176.71,2.8323]
[1730041326957,4.16,176.77,176.71,2.8323]
[1730041327563,2.8321,176.74,176.71,2.8323]
[1730041328163,4.16,176.77,176.68,1.1736]
[1730041328461,2.8317,176.76,176.69,1.4165298]
[1730041328657,2.8317,176.76,176.7,1.4165298]
[1730041328969,2.8317,176.76,176.69,4.85469561]
[1730041329268,2.8317,176.76,176.7,1.41644921]
[1730041329458,2.8316,176.77,176.74,2.8318]
[1730041331668,4.16,176.79,176.74,2.8318]
[1730041331866,2.8316,176.76,176.74,2.8318]
[1730041335671,2.8316,176.77,176.74,2.8318]
[1730041335876,4.16,176.79,176.74,2.8318]
[1730041336577,2.8316,176.77,176.74,2.8318]
[1730041338575,2.832,176.74,176.72,2.8322]
[1730041339078,4.16,176.79,176.72,2.8322]
[1730041339271,2.8318,176.75,176.72,2.8322]
[1730041340181,2.8318,176.75,176.71,4.16]
[1730041340182,4.16,176.79,176.71,4.16]
[1730041340517,2.0871,176.87,176.71,4.16]
[1730041340518,4.16,176.84,176.71,4.16]
[1730041340803,2.8311,176.8,176.76,2.8315]
[1730041341479,2.8311,176.8,176.74,1.2295]
[1730041341675,2.8312,176.79,176.74,1.2295]
[1730041341874,2.8312,176.79,176.75,4.16]
[1730041342493,2.8312,176.79,176.76,2.8316]
[1730041342701,4.16,176.84,176.75,4.16]
[1730041343414,2.8312,176.79,176.76,2.8316]
[1730041343615,4.16,176.84,176.74,1.2295]
[1730041343802,2.8308,176.81,176.74,1.2295]
[1730041343995,4.16,176.84,176.74,1.2295]
[1730041344204,4.16,176.84,176.62,5.6675]
[1730041344410,2.8321,176.74,176.71,1.41643801]
[1730041344597,2.8321,176.74,176.69,4.16]
[1730041344811,2.8321,176.74,176.7,4.24899505]
[1730041345003,4.16,176.78,176.67,4.16]
[1730041345306,4.16,176.78,176.68,1.41657031]
[1730041345495,4.16,176.78,176.68,2.8328]
[1730041345496,2.8324,176.72,176.68,2.8328]
[1730041346902,2.8324,176.71,176.68,2.8328]
[1730041350015,2.8326,176.71,176.67,2.833]
[1730041350213,4.16,176.74,176.67,2.833]
[1730041350512,2.8323,176.72,176.67,2.833]
[1730041350710,4.16,176.74,176.67,2.833]
[1730041351098,4.16,176.74,176.68,2.8328]
[1730041351099,2.8326,176.71,176.68,2.8328]
[1730041352590,2.8326,176.71,176.67,2.833]
[1730041352915,2.8326,176.71,176.68,1.41663168]
[1730041353108,2.8326,176.71,176.67,2.833]
[1730041353299,2.8326,176.71,176.68,1.41663045]
[1730041353499,2.8326,176.71,176.69,1.41663045]
[1730041353702,2.8326,176.71,176.67,2.833]
[1730041353903,2.8326,176.71,176.68,1.41661502]
[1730041354091,2.8326,176.71,176.69,1.41661502]
[1730041354284,2.8326,176.71,176.67,2.833]
[1730041354488,2.8326,176.71,176.68,6.28270068]
[1730041354695,2.8326,176.71,176.69,1.41660657]
[1730041354992,2.8326,176.71,176.67,2.833]
[1730041355193,2.0712,176.8,176.66,2.4859]
[1730041355487,2.832,176.74,176.71,2.8323]
[1730041355675,2.832,176.74,176.72,1.41660412]
[1730041355878,2.832,176.74,176.71,2.8323]
[1730041356182,2.832,176.74,176.72,1.41637678]
[1730041356381,2.832,176.74,176.73,1.4163731]
[1730041356582,2.832,176.74,176.71,2.8323]
[1730041356884,2.832,176.74,176.72,1.41637323]
[1730041357081,4.16,176.79,176.66,2.4859]
[1730041357396,4.16,176.79,176.67,6.28275139]
[1730041357687,2.8318,176.75,176.72,2.8322]
[1730041357887,2.8318,176.75,176.73,1.41637683]
[1730041358074,2.8318,176.75,176.72,2.8322]
[1730041358279,2.8318,176.75,176.73,1.41636313]
[1730041358480,2.8318,176.75,176.72,2.8322]
[1730041358675,2.8318,176.75,176.73,1.41636313]
[1730041358883,2.8318,176.75,176.72,2.8322]
[1730041359089,2.8318,176.75,176.69,4.16]
[1730041359386,2.8318,176.75,176.73,2.8321]
[1730041359688,2.8318,176.75,176.74,1.41637546]
[1730041362876,2.8318,176.75,176.72,2.8322]
[1730041363077,2.8318,176.75,176.74,1.41634096]
[1730041368596,2.8315,176.77,176.75,2.8317]
[1730041369687,4.16,176.79,176.69,4.16]
[1730041369993,2.8319,176.75,176.72,2.8321]
[1730041370200,2.8319,176.75,176.73,1.41627174]
[1730041370498,2.8319,176.75,176.74,1.41627174]
[1730041372485,2.8319,176.75,176.71,2.8323]
[1730041372486,2.8321,176.74,176.71,2.8323]
[1730041372890,2.8321,176.74,176.72,1.41627357]
[1730041374096,2.8321,176.74,176.72,4.24847357]
[1730041374697,2.8321,176.74,176.72,2.8322]
[1730041376196,2.8321,176.74,176.73,1.41641435]
[1730041381193,2.8317,176.76,176.74,2.8319]
[1730041381603,2.8317,176.76,176.75,1.41627365]
[1730041383397,4.16,176.79,176.75,4.24797365]
[1730041383398,2.8315,176.77,176.75,4.24797365]
[1730041383700,4.16,176.79,176.76,1.41627365]
[1730041383896,4.16,176.79,176.68,4.16]
[1730041384099,4.16,176.79,176.69,6.28482168]
[1730041384300,2.8316,176.76,176.72,2.8321]
[1730041384499,4.16,176.79,176.73,6.28482168]
[1730041384702,4.16,176.79,176.74,1.41621166]
[1730041384904,2.8318,176.75,176.72,2.8322]
[1730041385200,2.8318,176.75,176.73,1.41637084]
[1730041385400,2.8318,176.75,176.74,1.41637084]
[1730041386400,4.16,176.79,176.67,4.14]
[1730041386603,4.16,176.79,176.68,6.2879908]
[1730041386805,4.16,176.79,176.69,6.2879908]
[1730041387007,4.16,176.79,176.7,9.1204908]
[1730041387208,2.8322,176.73,176.71,6.2879908]
[1730041387407,2.8322,176.73,176.72,1.41646478]
[1730041388209,2.8322,176.73,176.72,1.41648589]
[1730041389914,2.8328,176.69,176.67,2.833]
[1730041390217,2.8328,176.69,176.68,6.28908208]
[1730041392013,2.8328,176.69,176.67,2.833]
[1730041392221,2.8328,176.69,176.68,4.87218]
[1730041392524,2.8326,176.7,176.68,6.28870876]
[1730041392711,2.8326,176.7,176.69,6.28870876]
[1730041395526,2.8326,176.7,176.69,1.41652876]
[1730041395918,2.8326,176.7,176.66,4.0625]
[1730041395919,2.833,176.68,176.66,4.0625]
[1730041396119,2.833,176.68,176.67,6.28956571]
[1730041399840,2.833,176.68,176.67,4.87103247]
[1730041400057,2.833,176.68,176.66,4.0625]
[1730041400337,2.833,176.68,176.67,6.28779222]
[1730041400629,6.9925,176.71,176.68,2.8329]
[1730041400837,4.16,176.71,176.66,1.2293]
[1730041401027,4.16,176.71,176.67,6.286972]
[1730041401224,4.16,176.71,176.68,6.286972]
[1730041401424,4.16,176.71,176.66,1.2293]
[1730041401425,2.8328,176.69,176.67,2.833]
[1730041401626,2.8328,176.69,176.68,6.28675756]
[1730041403687,2.8328,176.69,176.67,2.833]
[1730041403849,2.8328,176.69,176.68,4.87167584]
[1730041404047,2.8328,176.69,176.68,6.28831367]
[1730041404750,2.8316,176.77,176.7,2.8324]
[1730041404942,4.14,176.76,176.66,1.2293]
[1730041405134,4.14,176.75,176.67,7.49220038]
[1730041405339,6.9719,176.75,176.72,2.8322]